[Event "56th Biel Festival MTO 2023"]
[White "Jain Kashish Manoj"]
[Black "Meshkovs,Nikita"]
[Site "Biel"]
[Round "4.11"]
[Annotator "ChessBase"]
[Result "1-0"]
[Date "2023.07.20"]
[WhiteElo "2375"]
[BlackElo "2565"]
[PlyCount "81"]
[TimeControl "60"]

1. e4 {[%emt 0:0:0]} c5 {[%emt 0:0:0]} 2. Nf3 {[%emt 0:0:0]} Nc6 {[%emt 0:0:0]} 3. Bb5 {[%emt 0:0:0]} e6 {[%emt 0:0:0]} 4. Bxc6 {[%emt 0:0:0]} bxc6 {[%emt 0:0:0]} 5. d3 {[%emt 0:0:0]} Ne7 {[%emt 0:0:0]} 6. b3 {[%emt 0:0:0]} Ng6 {[%emt 0:0:0]} 7. h4 {[%emt 0:0:0]} h5 {[%emt 0:0:0]} 8. Bb2 {[%emt 0:0:0]} d6 {[%emt 0:0:0]} 9. e5 {[%emt 0:0:0]} dxe5 {[%emt 0:0:0]} 10. Nbd2 {[%emt 0:0:0]} f6 {[%emt 0:0:40]} 11. g3 {[%emt 0:1:57]} Ne7 {[%emt 0:17:41]} 12. Qe2 {[%emt 0:10:25]} Nf5 {[%emt 0:3:2]} 13. O-O-O {[%emt 0:3:21]} Be7 {[%emt 0:3:47]} 14. Rhe1 {[%emt 0:3:57]} Qd5 {[%emt 0:13:46]} 15. Ne4 {[%emt 0:6:31]} Nd4 {[%emt 0:7:59]} 16. Qe3 {[%emt 0:0:30]} Rh6 {[%emt 0:9:1]} 17. Nfd2 {[%emt 0:5:54]} Kf7 {[%emt 0:3:2]} 18. Nc4 {[%emt 0:5:50]} Qd8 {[%emt 0:8:49]} 19. Ba3 {[%emt 0:9:58]} Qf8 {[%emt 0:2:52]} 20. f3 {[%emt 0:12:58]} Kg8 {[%emt 0:3:36]} 21. c3 {[%emt 0:9:8]} Nb5 {[%emt 0:0:39]} 22. Bb2 {[%emt 0:0:7]} Rb8 {[%emt 0:2:11]} 23. Kc2 {[%emt 0:0:12]} Ba6 {[%emt 0:7:49]} 24. a4 {[%emt 0:2:5]} Nc7 {[%emt 0:6:37]} 25. Ba3 {[%emt 0:0:9]} Rg6 {[%emt 0:1:17]} 26. Qf2 {[%emt 0:2:20]} Nd5 {[%emt 0:1:54]} 27. Bxc5 {[%emt 0:2:38]} Bxc5 {[%emt 0:2:6]} 28. Nxc5 {[%emt 0:0:10]} Bc8 {[%emt 0:0:43]} 29. Rg1 {[%emt 0:4:56]} Qe7 {[%emt 0:0:17]} 30. Rde1 {[%emt 0:0:47]} Bd7 {[%emt 0:1:34]} 31. b4 {[%emt 0:3:30]} Rd8 {[%emt 0:1:2]} 32. g4 {[%emt 0:5:0]} Nf4 {[%emt 0:3:58]} 33. Qe3 {[%emt 0:0:35]} hxg4 {[%emt 0:0:49]} 34. fxg4 {[%emt 0:0:20]} Rh6 {[%emt 0:0:34]} 35. g5 {[%emt 0:7:54]} Rxh4 {[%emt 0:0:2]} 36. gxf6 {[%emt 0:0:8]} Qxf6 {[%emt 0:0:1]} 37. Nxe5 {[%emt 0:0:19]} Be8 {[%emt 0:0:1]} 38. Ref1 {[%emt 0:5:1]} Bh5 {[%emt 0:1:36]} 39. Kb3 {[%emt 0:2:36]} Rd5 {[%emt 0:1:39]} 40. d4 {[%emt 0:0:12]} Qf5 {[%emt 0:0:54]} 41. Ncd3 {[%emt 0:0:0]} 1-0

[Event "56th Biel Festival MTO 2023"]
[White "Rodrigue-Lemieux,Shawn"]
[Black "Besou,Hussain"]
[Site "Biel"]
[Round "4.12"]
[Annotator "RC"]
[Result "1-0"]
[Date "2023.07.20"]
[WhiteElo "2495"]
[BlackElo "2348"]
[PlyCount "143"]
[TimeControl "60"]

1. d4 {[%emt 0:0:0]} Nf6 {[%emt 0:0:0]} 2. c4 {[%emt 0:0:0]} e6 {[%emt 0:0:0]} 3. Nc3 {[%emt 0:0:0]} Bb4 {[%emt 0:0:0]} 4. e3 {[%emt 0:0:0]} O-O {[%emt 0:0:0]} 5. Bd3 {[%emt 0:0:0]} d5 {[%emt 0:0:0]} 6. a3 {[%emt 0:0:0]} Bxc3+ {[%emt 0:0:0]} 7. bxc3 {[%emt 0:0:0]} dxc4 {[%emt 0:0:0]} 8. Bxc4 {[%emt 0:0:0]} c5 {[%emt 0:0:0]} 9. Ne2 {[%emt 0:0:0]} Qc7 {[%emt 0:0:0]} 10. Ba2 {[%emt 0:0:0]} b6 {[%emt 0:0:0]} 11. O-O {[%emt 0:0:0]} Ba6 {[%emt 0:0:0]} 12. Bb2 {[%emt 0:0:0]} Nbd7 {[%emt 0:0:0]} 13. Rc1 {[%emt 0:9:9]} Rac8 {[%emt 0:7:49]} 14. c4 {[%emt 0:8:37]} cxd4 {[%emt 0:7:29]} 15. exd4 {[%emt 0:0:8]} Rfd8 {[%emt 0:7:37]} 16. Ng3 {[%emt 0:7:54]} Qc6 {[%emt 0:14:52]} 17. Re1 {[%emt 0:8:23]} Qd6 {[%emt 0:16:34]} 18. d5 {[%emt 0:3:18]} Qf4 {[%emt 0:7:10]} 19. dxe6 {[%emt 0:13:29]} fxe6 {[%emt 0:5:33]} 20. Qe2 {[%emt 0:11:2]} Re8 {[%emt 0:6:29]} 21. Nh5 {[%emt 0:5:22]} Nxh5 {[%emt 0:1:50]} 22. Qxh5 {[%emt 0:0:4]} Rf8 {[%emt 0:1:3]} 23. Bb1 {[%emt 0:7:22]} Nf6 {[%emt 0:5:47]} 24. Bxf6 {[%emt 0:1:3]} Rxf6 {[%emt 0:0:6]} 25. Bxh7+ {[%emt 0:7:36]} Kf8 {[%emt 0:0:9]} 26. Bg6 {[%emt 0:0:18]} Ke7 {[%emt 0:4:14]} 27. f3 {[%emt 0:4:51]} Rxc4 {[%emt 0:2:18]} 28. Rcd1 {[%emt 0:0:41]} Rc8 {[%emt 0:3:4]} 29. h4 {[%emt 0:6:51]} Qh6 {[%emt 0:5:6]} 30. Qxh6 {[%emt 0:0:7]} gxh6 {[%emt 0:0:6]} 31. h5 {[%emt 0:0:3]} Rf4 {[%emt 0:0:52]} 32. Be4 {[%emt 0:1:30]} Rc5 {[%emt 0:0:48]} 33. g4 {[%emt 0:1:10]} Bb5 {[%emt 0:1:38]} 34. Kf2 {[%emt 0:1:44]} Bc6 {[%emt 0:0:56]} 35. Kg3 {[%emt 0:0:16]} Rf6 {[%emt 0:0:13]} 36. Rd3 {[%emt 0:1:50]} Bxe4 {[%emt 0:2:37]} 37. Rxe4 {[%emt 0:0:3]} b5 {[%emt 0:1:37]} 38. Red4 {[%emt 0:1:51]} Rc7 {[%emt 0:0:11]} 39. a4 {[%emt 0:0:6]} bxa4 {[%emt 0:0:32]} 40. Rxa4 {[%emt 0:0:10]} Rf7 {[%emt 0:0:43]} 41. Ra6 {[%emt 0:32:11]} Kf6 {[%emt 0:31:44]} 42. f4 {[%emt 0:1:2]} Rfe7 {[%emt 0:0:0]} 43. f5 {[%emt 0:0:0]} Rc4 {[%emt 0:0:0]} 44. Rd8 {[%emt 0:0:0]} Rc3+ {[%emt 0:0:0]} 45. Kh4 {[%emt 0:0:0]} Re3 {[%emt 0:0:0]} 46. Rh8 {[%emt 0:0:0]} Kg7 {[%emt 0:0:0]} 47. f6+ {[%emt 0:0:0]} Kxf6 {[%emt 0:0:0]} 48. Rxh6+ {[%emt 0:0:0]} Kg7 {[%emt 0:0:0]} 49. Rg6+ {[%emt 0:0:0]} Kh7 {[%emt 0:0:0]} 50. Kg5 {[%emt 0:0:0]} Re4 {[%emt 0:0:0]} 51. Rh6+ {[%emt 0:0:0]} Kg7 {[%emt 0:0:0]} 52. Rg6+ {[%emt 0:0:0]} Kh7 {[%emt 0:0:0]} 53. Kh4 {[%emt 0:0:0]} Re1 {[%emt 0:0:0]} 54. Rg5 {[%emt 0:0:0]} Rf7 {[%emt 0:0:0]} 55. Rg6 {[%emt 0:0:0]} Re7 {[%emt 0:0:0]} 56. Rc6 {[%emt 0:0:0]} a5 {[%emt 0:0:0]} 57. Ra6 {[%emt 0:0:0]} Re5 {[%emt 0:0:0]} 58. Kg3 {[%emt 0:0:0]} Re4 {[%emt 0:0:0]} 59. Rxa5 {[%emt 0:0:0]} Rf7 {[%emt 0:0:0]} 60. Kh4 {[%emt 0:0:0]} Re1 {[%emt 0:0:0]} 61. Ra6 {[%emt 0:0:0]} e5 {[%emt 0:0:0]} 62. Rh6+ {[%emt 0:0:0]} Kg7 {[%emt 0:0:0]} 63. Rag6+ {[%emt 0:0:0]} Kf8 {[%emt 0:0:0]} 64. Re6 {[%emt 0:0:0]} Rg7 {[%emt 0:1:32]} 65. Rhf6+ {[%emt 0:1:8]} Kg8 {[%emt 0:0:10]} 66. Rg6 {[%emt 0:3:47]} Rxg6 {[%emt 0:0:20]} 67. Rxg6+ {[%emt 0:0:7]} Kf7 {[%emt 0:0:4]} 68. Kg5 {[%emt 0:0:16]} e4 {[%emt 0:0:8]} 69. Rf6+ {[%emt 0:1:0]} Ke7 {[%emt 0:0:27]} 70. h6 {[%emt 0:6:23]} e3 {[%emt 0:0:13]} 71. Rf3 {[%emt 0:0:58]} e2 {[%emt 0:0:14]} 72. Rf2 {[%emt 0:0:24]} 1-0

[Event "56th Biel Festival MTO 2023"]
[White "Samadov,Read"]
[Black "Dotzer,Lukas"]
[Site "Biel"]
[Round "4.13"]
[Annotator "TA"]
[Result "1/2-1/2"]
[Date "2023.07.20"]
[WhiteElo "2482"]
[BlackElo "2369"]
[PlyCount "176"]
[TimeControl "60"]

{[%evp 19,176,15,18,11,15,14,14,9,19,20,15,4,0,1,79,80,66,20,37,17,18,0,0,0,0,0,12,14,16,-89,-69,-157,-157,-159,-124,-221,-222,-214,-221,-223,-114,-117,-112,-141,-129,-117,-93,-94,-94,-95,-91,-92,-89,-90,-83,-89,-73,-81,-75,-79,-83,-89,-86,-86,-93,-82,-92,-94,-92,-93,-96,-96,-97,-98,-85,-90,-86,-83,-68,-88,-87,-86,-88,-91,-93,-104,-94,-111,-72,-73,-78,-72,-72,-89,-81,-89,-81,-81,-73,-81,-72,-81,-81,-81,-81,-83,-72,-82,-56,-75,-63,-63,-72,-66,-38,-38,-38,-38,0,-37,-37,-37,-37,-83,-83,-97,-83,-97,-97,-97,-97,-97,-97,-97,-97,-108,-95,-108,-81,-108,-81,-81,0,-108,-83,-97,-97,-97,-97,-97,-97,-97,-97,-97,-97,-97,0,-97,0]} 1. d4 {[%emt 0:0:0]} Nf6 {[%emt 0:0:0]} 2. c4 {[%emt 0:0:0]} e6 {[%emt 0:0:0]} 3. Nf3 {[%emt 0:0:0]} b6 {[%emt 0:0:0]} 4. g3 {[%emt 0:0:0]} Bb7 {[%emt 0:0:0]} 5. Bg2 {[%emt 0:0:0]} Be7 {[%emt 0:0:0]} 6. O-O {[%emt 0:0:0]} O-O {[%emt 0:0:0]} 7. Re1 {[%emt 0:0:0]} d5 {[%emt 0:0:0]} 8. cxd5 {[%emt 0:0:0]} exd5 {[%emt 0:0:0]} 9. Nc3 {[%emt 0:0:0]} Nbd7 {[%emt 0:0:0]} 10. Bf4 {[%emt 0:2:26]} c5 {[%emt 0:0:0]} 11. Rc1 {[%emt 0:6:54] E17: Queen's Indian: 4 g3 Bb7 5 Bg2 Be7.} Ne4 {[%emt 0:0:0]} 12. dxc5 {[%emt 0:18:26]} Ndxc5 {[%emt 0:7:4]} 13. Be5 {[%emt 0:7:10] The position is equal.} Re8 {[%emt 0:0:55]} 14. Nb5 {[%emt 0:6:51]} Bf8 {[%emt 0:0:29]} 15. b4 {[%emt 0:6:45]} Ne6 {[%emt 0:0:14]} 16. Qb3 {[%emt 0:3:1] [#]} Nd6 $146 {[%emt 0:16:3]} (16... a6 $11 {keeps the balance.} 17. Nbd4 a5 )({Predecessor:} 16... a5 17. bxa5 Bc5 18. e3 Rxa5 19. Red1 Qd7 20. a4 Nf8 21. Bc3 Raa8 22. Bd4 Ne6 {1-0 Harutyunian,T (2452)-Rozum,I (2559) Nezhmetdinov Memorial 38th 2016 (6)} )17. Nxd6 {[%emt 0:1:40]} Bxd6 {[%emt 0:0:7]} 18. Bb2 {[%emt 0:3:22] White is more active.} (18. Red1 $14 )a5 {[%emt 0:8:55]} 19. bxa5 {[%emt 0:6:44]} Rxa5 {[%emt 0:0:31]} 20. Bc3 {[%emt 0:3:22]} Ra3 {[%emt 0:5:15]} 21. Qb2 {[%emt 0:2:12]} Qa8 {[%emt 0:14:5]} 22. Qxb6 {[%emt 0:6:21]} Bc5 {[%emt 0:2:40]} 23. Qb1 {[%emt 0:3:29]} d4 {[%emt 0:12:9]} 24. Bd2 {[%emt 0:6:25]} (24. Ng5 $1 $11 {remains equal.} Nxg5 25. Bxb7 (25. Qxb7 $2 {is the wrong capture.} Qxb7 26. Bxb7 dxc3 $19 ))d3 {[%emt 0:15:4]} (24... Rxa2 $2 25. Ng5 Nxg5 26. Bxb7 Nh3+ 27. Kg2 $18 )25. Rc3 {[%emt 0:1:25]} (25. exd3 $1 $15 Bf8 26. Bb4 Bxf3 27. Bxf3 Qxf3 28. Bxa3 Bxa3 29. Qb5 )Rxa2 $17 {[%emt 0:8:53]} 26. Rxd3 {[%emt 0:2:29]} Be4 {[%emt 0:1:3][%mdl 64] Skewer} 27. Nh4 {[%emt 0:1:51]} (27. Bf4 $17 )Bxd3 $19 {[%emt 0:0:46]} 28. Qxd3 {[%emt 0:0:24]} Qa7 {[%emt 0:0:46]} 29. Rf1 {[%emt 0:1:15] [#]} Ra1 {[%emt 0:4:28]} (29... Nd4 $1 $19 30. Bd5 Qa3 31. Qxa3 Nxe2+ 32. Kg2 Rxa3 )30. e3 $17 {[%emt 0:2:5]} Rd8 {[%emt 0:1:3]} 31. Qc3 {[%emt 0:0:51]} Ra3 {[%emt 0:2:17]} 32. Qc1 {[%emt 0:0:44]} Rad3 {[%emt 0:0:50]} 33. Nf3 {[%emt 0:3:59]} Qa2 {[%emt 0:1:9][%cal Rd3d2]} 34. Bc3 {[%emt 0:0:39]} Ba3 {[%emt 0:0:40]} 35. Qa1 {[%emt 0:0:16]} Qb3 {[%emt 0:1:13]} 36. Bd4 {[%emt 0:0:32]} Rb8 {[%emt 0:0:57]} 37. Be5 {[%emt 0:1:37]} Bd6 {[%emt 0:0:51]} 38. Qa7 {[%emt 0:1:15]} Rd1 {[%emt 0:0:29]} 39. Bxd6 {[%emt 0:2:1][%mdl 64] Remove Defender} Rxd6 {[%emt 0:0:9]} 40. Ne5 {[%emt 0:0:57] [#]} Rf8 {[%emt 0:0:48][%cal Bb8f8,Bf8c8,Bc8c7][%mdl 32]} 41. Nd7 {[%emt 0:0:0]} Rc8 {[%emt 0:0:0] Threatens to win with ...Qb5.} 42. Ne5 {[%emt 0:0:0]} Rc7 {[%emt 0:0:0]} 43. Qa1 {[%emt 0:0:0][%cal Oe5c6]} Qc3 {[%emt 0:0:0]} 44. Qa8+ {[%emt 0:0:0]} Rc8 {[%emt 0:6:47]} 45. Qb7 {[%emt 0:0:0]} Qc7 {[%emt 0:1:58]} 46. Qe4 {[%emt 0:1:10]} Nc5 {[%emt 0:2:58][%cal Be6c5,Bc5e4,Be4c3][%mdl 32]} 47. Qg4 {[%emt 0:2:19]} Re8 {[%emt 0:1:28]} 48. Nf3 {[%emt 0:2:15]} Qd7 {[%emt 0:4:26]} 49. Qc4 {[%emt 0:1:28]} Ne4 {[%emt 0:2:34]} 50. Qc1 {[%emt 0:4:59]} Rc8 {[%emt 0:1:57]} 51. Qe1 {[%emt 0:0:55]} Nc3 {[%emt 0:2:49] White must now prevent ...Rd1.} 52. Nd4 {[%emt 0:1:16]} g6 {[%emt 0:4:2]} 53. h4 {[%emt 0:2:4]} Qa4 {[%emt 0:1:13]} 54. Qa1 {[%emt 0:7:20]} Qxa1 {[%emt 0:3:7]} 55. Rxa1 {[%emt 0:0:2]} Rb6 {[%emt 0:2:4]} 56. Rc1 {[%emt 0:2:11]} Rb2 {[%emt 0:1:9]} 57. Bf3 {[%emt 0:1:18]} Rc7 {[%emt 0:1:35]} 58. h5 {[%emt 0:1:16]} Kg7 {[%emt 0:0:43]} (58... Nb5 {simplifies} 59. Rxc7 Nxc7 60. hxg6 hxg6 61. g4 Kg7 )59. Kg2 {[%emt 0:1:0] [#]} Nd5 $1 {[%emt 0:0:39][%mdl 64] Discovered Attack} 60. Rxc7 {[%emt 0:2:15]} (60. Re1 Nc3 )Nxc7 {[%emt 0:0:13]} 61. hxg6 {[%emt 0:2:6]} hxg6 {[%emt 0:0:23][%mdl 4096] Endgame KRN-KBN} 62. Kf1 {[%emt 0:2:2]} Na6 {[%emt 0:0:0]} 63. Be4 {[%emt 0:0:0]} Nb4 {[%emt 0:0:0]} 64. Kg2 {[%emt 0:0:0]} f5 {[%emt 0:0:0]} 65. Bf3 {[%emt 0:0:0]} Nd3 {[%emt 0:0:0]} 66. Be2 {[%emt 0:0:0]} Ne1+ {[%emt 0:0:0]} 67. Kg1 $1 {[%emt 0:0:0]} Rb1 {[%emt 0:0:0] ...Nc2+ is the strong threat.} 68. Kh2 {[%emt 0:0:0]} Rb2 {[%emt 0:0:0] Hoping for ...Nc2.} 69. Kg1 $1 {[%emt 0:0:0]} Nc2 {[%emt 0:0:0]} 70. Nxc2 $1 {[%emt 0:0:0]} Rxc2 $15 {[%emt 0:0:0] KR-KB} 71. Bf3 {[%emt 0:0:0]} (71. Kf1 $15 )g5 $17 {[%emt 0:0:0]} 72. Kg2 {[%emt 0:0:0]} Kf6 {[%emt 0:0:0]} 73. Bb7 {[%emt 0:0:0]} Ke5 {[%emt 0:0:13]} 74. Kf3 {[%emt 0:0:0]} Rc7 {[%emt 0:1:21]} 75. Ba6 {[%emt 0:0:0]} Ra7 {[%emt 0:0:29]} 76. Bd3 {[%emt 0:0:0]} Ra4 {[%emt 0:0:20]} 77. Bc2 {[%emt 0:0:0]} Ra3 {[%emt 0:0:23]} 78. Bb1 {[%emt 0:0:34]} Rc3 {[%emt 0:0:21]} 79. Ba2 {[%emt 0:3:16]} Kd6 {[%emt 0:1:7]} 80. Bb1 {[%emt 0:0:23]} Ke5 {[%emt 0:0:21]} 81. Ba2 $1 {[%emt 0:0:31]} Rc1 {[%emt 0:0:20]} 82. Bf7 {[%emt 0:1:17]} Rg1 {[%emt 0:0:37]} 83. Bc4 {[%emt 0:0:48]} g4+ {[%emt 0:0:30]} 84. Ke2 {[%emt 0:0:31]} Rb1 {[%emt 0:0:29]} 85. Bd3 {[%emt 0:0:4]} Rb2+ {[%emt 0:0:20]} 86. Kf1 {[%emt 0:1:3]} Rd2 {[%emt 0:0:14]} 87. Ba6 {[%emt 0:0:16]} Rb2 {[%emt 0:0:41]} 88. Bd3 {[%emt 0:0:15]} Rd2 {[%emt 0:0:28] Black had all chances to win.   Weighted Error Value: White=0.09 (flawless) /Black=0.09 (flawless)} ({Black should try} 88... Rb3 $17 89. Ke2 Rb2+ 90. Ke1 Ra2 )1/2-1/2

[Event "56th Biel Festival MTO 2023"]
[White "Haimovich,Tal"]
[Black "Wang,Chen"]
[Site "Biel"]
[Round "4.14"]
[Annotator "ChessBase"]
[Result "0-1"]
[Date "2023.07.20"]
[WhiteElo "2374"]
[BlackElo "2477"]
[PlyCount "86"]
[TimeControl "60"]

1. e4 {[%emt 0:0:0]} c5 {[%emt 0:0:0]} 2. Nf3 {[%emt 0:0:0]} e6 {[%emt 0:0:0]} 3. d4 {[%emt 0:0:0]} cxd4 {[%emt 0:0:0]} 4. Nxd4 {[%emt 0:0:0]} Nc6 {[%emt 0:0:0]} 5. Nc3 {[%emt 0:0:0]} a6 {[%emt 0:0:0]} 6. Be3 {[%emt 0:0:0]} Nf6 {[%emt 0:0:0]} 7. Bd3 {[%emt 0:0:0]} b5 {[%emt 0:19:56]} 8. O-O {[%emt 0:9:30]} Bb7 {[%emt 0:0:32]} 9. Nxc6 {[%emt 0:6:33]} Bxc6 {[%emt 0:3:22]} 10. e5 {[%emt 0:11:13]} Nd5 {[%emt 0:0:17]} 11. Nxd5 {[%emt 0:0:19]} Bxd5 {[%emt 0:0:4]} 12. Qe2 {[%emt 0:1:28]} Qc7 {[%emt 0:2:35]} 13. f4 {[%emt 0:4:25]} Bc5 {[%emt 0:2:5]} 14. Bxc5 {[%emt 0:1:22]} Qxc5+ {[%emt 0:0:2]} 15. Qf2 {[%emt 0:0:28]} Qxf2+ {[%emt 0:1:31]} 16. Kxf2 {[%emt 0:2:21]} Ke7 {[%emt 0:0:8]} 17. Rfe1 {[%emt 0:6:17]} Rhc8 {[%emt 0:0:41]} 18. c3 {[%emt 0:0:32]} Rab8 {[%emt 0:1:39]} 19. g3 {[%emt 0:7:9]} a5 {[%emt 0:3:12]} 20. Be4 {[%emt 0:1:51]} b4 {[%emt 0:12:47]} 21. Bxd5 {[%emt 0:6:45]} exd5 {[%emt 0:0:6]} 22. cxb4 {[%emt 0:0:16]} Rxb4 {[%emt 0:0:20]} 23. Re2 {[%emt 0:0:23]} Rcb8 {[%emt 0:0:24]} 24. b3 {[%emt 0:6:2]} a4 {[%emt 0:2:21]} 25. bxa4 {[%emt 0:0:38]} Rxa4 {[%emt 0:0:3]} 26. Rd1 {[%emt 0:5:3]} Rb5 {[%emt 0:1:8]} 27. Kf3 {[%emt 0:10:55]} Rba5 {[%emt 0:2:55]} 28. Rdd2 {[%emt 0:5:7]} Ke6 {[%emt 0:0:8]} 29. Kg4 {[%emt 0:1:44]} d4 {[%emt 0:1:35]} 30. f5+ {[%emt 0:5:16]} Kd5 {[%emt 0:0:21]} 31. Kf4 {[%emt 0:1:7]} d3+ {[%emt 0:10:0]} 32. Kf3 {[%emt 0:0:58]} Kc4 {[%emt 0:4:36]} 33. Re3 {[%emt 0:5:56]} Rd5 {[%emt 0:0:9]} 34. Re4+ {[%emt 0:1:45]} Rd4 {[%emt 0:1:30]} 35. e6 {[%emt 0:1:16]} fxe6 {[%emt 0:0:9]} 36. fxe6 {[%emt 0:0:5]} dxe6 {[%emt 0:0:3]} 37. Rxe6 {[%emt 0:0:20]} Kc3 {[%emt 0:0:5]} 38. Rd1 {[%emt 0:0:32]} Kc2 {[%emt 0:1:7]} 39. Ra1 {[%emt 0:0:52]} d2 {[%emt 0:0:20]} 40. Re2 {[%emt 0:0:50]} Ra3+ {[%emt 0:1:26]} 41. Kf2 {[%emt 0:0:0]} Rd7 {[%emt 0:0:0]} 42. Kg2 {[%emt 0:0:0]} Rda7 {[%emt 0:0:0]} 43. Re6 {[%emt 0:0:0]} Rc7 {[%emt 0:0:0]} 0-1

[Event "56th Biel Festival MTO 2023"]
[White "Pham,Le Thao Nguyen"]
[Black "Rathanvel,V S"]
[Site "Biel"]
[Round "4.15"]
[Annotator "ChessBase"]
[Result "1/2-1/2"]
[Date "2023.07.20"]
[WhiteElo "2369"]
[BlackElo "2463"]
[PlyCount "79"]
[TimeControl "60"]

1. d4 {[%emt 0:0:0]} Nf6 {[%emt 0:0:0]} 2. Nf3 {[%emt 0:0:0]} b6 {[%emt 0:0:0]} 3. Bf4 {[%emt 0:0:0]} Bb7 {[%emt 0:0:0]} 4. e3 {[%emt 0:0:0]} g6 {[%emt 0:0:0]} 5. a4 {[%emt 0:0:0]} a5 {[%emt 0:6:2]} 6. h3 {[%emt 0:0:0]} Bg7 {[%emt 0:0:26]} 7. Bc4 {[%emt 0:0:0]} d6 {[%emt 0:3:13]} 8. O-O {[%emt 0:0:0]} O-O {[%emt 0:0:13]} 9. Nc3 {[%emt 0:0:12]} e6 {[%emt 0:22:2]} 10. Re1 {[%emt 0:6:52]} Nbd7 {[%emt 0:2:20]} 11. e4 {[%emt 0:8:25]} d5 {[%emt 0:12:24]} 12. exd5 {[%emt 0:2:38]} Nxd5 {[%emt 0:0:9]} 13. Nxd5 {[%emt 0:0:20]} exd5 {[%emt 0:0:5]} 14. Bd3 {[%emt 0:0:59]} Nf6 {[%emt 0:2:49]} 15. Bg5 {[%emt 0:2:0]} h6 {[%emt 0:13:24]} 16. Bxf6 {[%emt 0:2:34]} Qxf6 {[%emt 0:2:24]} 17. c3 {[%emt 0:0:34]} Rfe8 {[%emt 0:4:37]} 18. Qd2 {[%emt 0:1:31]} Qd6 {[%emt 0:9:7]} 19. Bb5 {[%emt 0:10:9]} c6 {[%emt 0:10:38]} 20. Bd3 {[%emt 0:0:19]} Kf8 {[%emt 0:5:3]} 21. Rxe8+ {[%emt 0:5:51]} Rxe8 {[%emt 0:0:1]} 22. Re1 {[%emt 0:0:42]} Rxe1+ {[%emt 0:4:52]} 23. Qxe1 {[%emt 0:0:14]} Bc8 {[%emt 0:0:18]} 24. Qe3 {[%emt 0:0:35]} c5 {[%emt 0:0:29]} 25. Bb5 {[%emt 0:1:59]} Be6 {[%emt 0:0:20]} 26. Kf1 {[%emt 0:5:7]} Kg8 {[%emt 0:0:44]} 27. Kg1 {[%emt 0:0:38]} Kh7 {[%emt 0:0:24]} 28. Bd3 {[%emt 0:1:15]} Bf6 {[%emt 0:0:20]} 29. h4 {[%emt 0:4:41]} Kg7 {[%emt 0:0:37]} 30. h5 {[%emt 0:0:44]} g5 {[%emt 0:0:11]} 31. Bc2 {[%emt 0:1:29]} Kf8 {[%emt 0:2:3]} 32. Ne5 {[%emt 0:2:5]} cxd4 {[%emt 0:0:14]} 33. cxd4 {[%emt 0:0:13]} Qb4 {[%emt 0:0:47]} 34. b3 {[%emt 0:0:46]} Qa3 {[%emt 0:0:29]} 35. Kh2 {[%emt 0:2:32]} Qb2 {[%emt 0:0:11]} 36. Bd1 {[%emt 0:0:47]} Qb1 {[%emt 0:0:52]} 37. Bf3 {[%emt 0:1:35]} Kg7 {[%emt 0:0:29]} 38. Bg4 {[%emt 0:1:33]} Bxg4 {[%emt 0:0:39]} 39. Nxg4 {[%emt 0:0:9]} Qf5 {[%emt 0:0:9]} 40. Nxf6 {[%emt 0:0:35]} 1/2-1/2

[Event "56th Biel Festival MTO 2023"]
[White "Huang,Renjie"]
[Black "Sutter,Oliver"]
[Site "Biel"]
[Round "4.16"]
[Annotator "ChessBase"]
[Result "1-0"]
[Date "2023.07.20"]
[WhiteElo "2445"]
[BlackElo "2313"]
[PlyCount "85"]
[TimeControl "60"]

1. e4 {[%emt 0:0:0]} Nf6 {[%emt 0:0:0]} 2. e5 {[%emt 0:0:0]} Nd5 {[%emt 0:0:0]} 3. d4 {[%emt 0:0:0]} d6 {[%emt 0:0:0]} 4. Nf3 {[%emt 0:0:0]} g6 {[%emt 0:0:0]} 5. Be2 {[%emt 0:0:0]} Bg7 {[%emt 0:0:0]} 6. O-O {[%emt 0:0:0]} O-O {[%emt 0:0:0]} 7. c4 {[%emt 0:0:0]} Nb6 {[%emt 0:0:0]} 8. Nc3 {[%emt 0:0:0]} Nc6 {[%emt 0:0:0]} 9. exd6 {[%emt 0:0:0]} cxd6 {[%emt 0:0:0]} 10. h3 {[%emt 0:0:0]} Bf5 {[%emt 0:0:0]} 11. Be3 {[%emt 0:0:0]} d5 {[%emt 0:0:0]} 12. b3 {[%emt 0:0:0]} dxc4 {[%emt 0:0:0]} 13. bxc4 {[%emt 0:0:0]} Na5 {[%emt 0:3:0]} 14. c5 {[%emt 0:0:3]} Nd5 {[%emt 0:0:56]} 15. Nxd5 {[%emt 0:1:21]} Qxd5 {[%emt 0:0:7]} 16. Qa4 {[%emt 0:0:10]} b6 {[%emt 0:4:42]} 17. Rac1 {[%emt 0:3:30]} Bd7 {[%emt 0:6:40]} 18. Qa3 {[%emt 0:0:22]} Bc6 {[%emt 0:6:32]} 19. Rfd1 {[%emt 0:1:4]} e6 {[%emt 0:6:1]} 20. Ne1 {[%emt 0:4:17]} Rfd8 {[%emt 0:9:53]} 21. Bd2 {[%emt 0:5:44]} Nb7 {[%emt 0:12:28]} 22. Bf3 {[%emt 0:0:41]} Qd7 {[%emt 0:0:14]} 23. Bg5 {[%emt 0:2:50]} Rdc8 {[%emt 0:4:29]} 24. Qe3 {[%emt 0:2:16]} Bd5 {[%emt 0:5:10]} 25. Nd3 {[%emt 0:6:19]} Na5 {[%emt 0:5:17]} 26. Ne5 {[%emt 0:2:5]} Qb7 {[%emt 0:0:27]} 27. Bxd5 {[%emt 0:0:30]} Qxd5 {[%emt 0:4:30]} 28. Ng4 {[%emt 0:1:37]} Nc6 {[%emt 0:2:27]} 29. Bf6 {[%emt 0:1:15]} Qf5 {[%emt 0:3:27]} 30. Bxg7 {[%emt 0:0:10]} Kxg7 {[%emt 0:0:3]} 31. d5 {[%emt 0:1:13]} Ne7 {[%emt 0:6:36]} 32. dxe6 {[%emt 0:1:8]} Qxe6 {[%emt 0:5:18]} 33. Qc3+ {[%emt 0:8:48]} f6 {[%emt 0:0:10]} 34. Re1 {[%emt 0:0:10]} Qf7 {[%emt 0:0:50]} 35. Nxf6 {[%emt 0:0:36]} Rxc5 {[%emt 0:0:44]} 36. Qb2 {[%emt 0:0:4]} Rxc1 {[%emt 0:0:16]} 37. Ng4+ {[%emt 0:0:4]} Kf8 {[%emt 0:1:13]} 38. Rxc1 {[%emt 0:0:19]} Rc8 {[%emt 0:2:25]} 39. Re1 {[%emt 0:0:29]} Nf5 {[%emt 0:1:15]} 40. Ne5 {[%emt 0:1:4]} Qg7 {[%emt 0:2:35]} 41. Qb4+ {[%emt 0:30:53]} Rc5 {[%emt 0:32:29]} 42. g4 {[%emt 0:1:8]} Nd6 {[%emt 0:2:22]} 43. Qd4 {[%emt 0:2:26]} 1-0